Cogmind - Beta 13 @@@ ROGUE MODE // 2024.04.11 @ 00:19:47 // Winter2022/Polymind Player: Nebula avali Result: Destroyed by P-60 Hacker with Shock Rifle Performance ------------- Evolutions (0) 0 Regions Visited (3) 600 Robots Destroyed (5) 25 Value Destroyed (50) 50 Prototype IDs (2) 40 Alien Tech Used (0) 0 Bonus (940) 940 TOTAL SCORE: 1375 Bonus ------- Polymind Skill 940 Cogmind --------- Core Integrity 0/250 Matter 0/0 Energy 48/50 System Corruption 0% Temperature Cool (0) Movement Rolling (100) Location -9/Recycling Parts ------- > --- POWER (1) -------- Light Ion Engine > --- PROPULSION (2) --- Compact Wheel Compact Wheel > --- UTILITY (2) ------ Small Storage Unit Tractor Beam > --- WEAPON (0) ------- (None) > --- INVENTORY (4) ---- Welding Torch Welding Torch Welding Torch Welding Torch Peak State ------------ > --- POWER ------------ Subdweller Power Source > --- PROPULSION ------- Subdweller Monowheel > --- UTILITY ---------- Disposable Heat Sink Subdweller Optics Scrap Shield > --- WEAPON ----------- Subdweller Laser > --- INVENTORY -------- (None) [Rating: 14] Favorites ----------- Power Light Ion Engine Engine Light Ion Engine Propulsion Hover Unit Treads Light Treads Wheel Subdweller Monowheel Hover Unit Hover Unit Utility Visual Processing Unit Device Sensor Array Storage Small Storage Unit Processor Visual Processing Unit Protection Scrap Shield Weapon Subdweller Laser Energy Gun Subdweller Laser Ballistic Gun Heavy Assault Rifle Build | -11 -10 -10 -9 ------- Run | Yrd Mat Sub Rec Slots Evolved . | . . . . Power . | . . . . Propulsion . | . . . . Utility . | . . . . Weapon . | . . . . Parts Attached . | . . . . Power . | . . . . Engine . | . . . . Core . | . . . . Reactor . | . . . . Propulsion . | . . . . Treads . | . . . . Leg . | . . . . Wheel . | . . . . Hover . | . . . . Flight . | . . . . Utility . | . . . . Device . | . . . . Storage . | . . . . Processor . | . . . . Hackware . | . . . . Protection . | . . . . Artifact . | . . . . Weapon . | . . . . Energy Gun . | . . . . Energy Cannon . | . . . . Ballistic Gun . | . . . . Ballistic Cannon . | . . . . Launcher . | . . . . Special Weapon . | . . . . Impact Weapon . | . . . . Slashing Weapon . | . . . . Piercing Weapon . | . . . . Special Melee Weapon . | . . . . Unidentified Prototypes . | . . . . Parts Lost 7 | . . 7 . Power 1 | . . 1 . Propulsion 2 | . . 2 . Utility 2 | . . 2 . Weapon 2 | . . 2 . Highest Loss Streak 7 | . . 7 . To Critical Strikes . | . . . . Average Slot Usage (%) 85 | . 97 83 45 Engine 13 | . 15 13 9 Treads 2 | . . 4 . Wheel 6 | . . 8 18 Hover 15 | . 32 5 . Device 18 | . 15 23 9 Processor 15 | . 32 5 . Protection 5 | . . 9 . Energy Gun 5 | . . 10 . Ballistic Gun 1 | . . 1 . Naked Turns 108 | . 17 36 55 Heaviest Build 30 | . 4 30 9 Greatest Support 40 | 3 12 40 32 Greatest Overweight (x) 1 | . . 1 . Average Overweight (x) . | . . . . Largest Inventory Capacity 4 | . . 2 4 Average Capacity . | . . 1 2 Most Carried 4 | . . 2 4 Average Carried . | . . 1 1 Final Capacity 4 | . . . 4 Final Carried 4 | . . . 4 Class Distribution -------------------- 45% | Watcher 29% | Subdweller 9% | Cogmind 9% | Sentry 5% | Recycler Dominant Class ---------------- Watcher | -10/Materials Subdweller | -10/Subcaves Cogmind | -9/Recycling Resources | -11 -10 -10 -9 ----------- Run | Yrd Mat Sub Rec Matter Collected 2 | . . 2 . Remotely . | . . . . Salvage Created 69 | . . 69 . Parts 10 | . . 10 . Haulers Intercepted . | . . . . Recyclers Shooed . | . . . . Parts Field Recycled . | . . . . Retrieved Matter . | . . . . Parts Self-Destructed 17 | . . 17 . Prevented . | . . . . Kills | -11 -10 -10 -9 ------- Run | Yrd Mat Sub Rec Combat Hostiles Destroyed 5 | . . 5 . Guns 5 | . . 5 . Classes Destroyed 1 | . . 1 . Swarmer 5 | . . 5 . Best Kill Streak 5 | . . 5 . Combat Bots Only 5 | . . 5 . Max Kills in Single Turn 2 | . . 2 . Gunslinging 1 | . . 1 . Exploded . | . . . . Melee . | . . . . Uniques/NPCs Destroyed . | . . . . Combat | -11 -10 -10 -9 -------- Run | Yrd Mat Sub Rec Hostile Shots Fired 140 | . . 137 3 Missed 43 | . . 43 . Damage Taken 969 | . . 916 53 Core 262 | . . 227 35 Absorbed by Shields . | . . . . Core Remaining (%) 100 | 100 . . . Volleys Fired 16 | . . 16 . Largest 2 | . . 2 . Hottest 79 | . . 79 . Shots Fired 24 | . . 24 . Gun 24 | . . 24 . Cannon . | . . . . Launcher . | . . . . Special . | . . . . Kinetic 9 | . . 9 . Thermal 15 | . . 15 . Explosive . | . . . . Electromagnetic . | . . . . Robot Hit Streak 4 | . . 4 . Robot Miss Streak 4 | . . 4 . Penetration Max . | . . . . Secondary Targets 2 | . . 2 . Max Gunslinging Chain 1 | . . 1 . Shots Hit Robots 10 | . . 10 . Core Hits 6 | . . 6 . Critical Kills . | . . . . Critical Parts Destroyed . | . . . . Critical Strikes . | . . . . Melee Attacks . | . . . . Impact . | . . . . Slashing . | . . . . Piercing . | . . . . Sneak Attacks . | . . . . Combat Hostiles . | . . . . Follow-up Attacks . | . . . . Damage Inflicted 133 | . . 133 . Guns 130 | . . 130 . Cannons . | . . . . Explosions . | . . . . Melee . | . . . . Ramming 3 | . . 3 . Kinetic 60 | . . 60 . Thermal 70 | . . 70 . Explosive . | . . . . Electromagnetic . | . . . . Impact . | . . . . Slashing . | . . . . Piercing . | . . . . Highest Corruption . | . . . . Average Corruption . | . . . . Corruption Purged . | . . . . Corruption Blocked . | . . . . Overload Shots . | . . . . Overflow Damage . | . . . . Projectiles . | . . . . Explosions . | . . . . Melee . | . . . . Knockbacks . | . . . . Impact . | . . . . Kinetic . | . . . . Secondary . | . . . . Self-Inflicted Damage . | . . . . Shots . | . . . . Rammed 3 | . . 3 . Targets Rammed 3 | . . 3 . Kicked . | . . . . Crushed . | . . . . Highest Temperature 47 | . . 47 . Average Temperature 22 | . . 22 . Received Heat Transfer 174 | . . 174 . Siege Activations . | . . . . Robots Corrupted . | . . . . Combat Hostiles . | . . . . Parts Fried . | . . . . Impact Corruptions . | . . . . Robots Melted . | . . . . Combat Hostiles . | . . . . Parts Melted . | . . . . Heat Transferred 185 | . . 185 . Parts Sabotaged . | . . . . Parts Stolen . | . . . . Parts Stripped . | . . . . Power Chain Reactions . | . . . . Alert | -11 -10 -10 -9 ------- Run | Yrd Mat Sub Rec Peak Influence 323 | . 24 . 323 Initial 278 | . . . 278 Average 77 | . 21 . 292 Maximum Alert Level 1 | . . . 1 Low Security (%) 79 | . 100 . . Level 1 20 | . . . 100 Level 2 . | . . . . Level 3 . | . . . . Level 4 . | . . . . Level 5 . | . . . . High Security . | . . . . Max Security . | . . . . Squads Dispatched . | . . . . Investigation . | . . . . Extermination . | . . . . Reinforcement . | . . . . Assault . | . . . . Garrison . | . . . . Intercept . | . . . . Searches Triggered . | . . . . Construction Impeded . | . . . . Haulers Reinforced . | . . . . Active Scanning Responses . | . . . . Cargo Convoy Interrupts . | . . . . Stealth | -11 -10 -10 -9 --------- Run | Yrd Mat Sub Rec Distress Signals . | . . . . Communications Jammed . | . . . . Distress Signals . | . . . . Times Spotted 41 | . 1 37 3 Peak Tracking Total 9 | . . 9 2 Tactical Retreats 4 | . . 4 . Traps | -11 -10 -10 -9 ------- Run | Yrd Mat Sub Rec Traps Triggered . | . . . . Indirectly . | . . . . Trap Hack Attempts . | . . . . Triggered . | . . . . Disarmed . | . . . . Reprogrammed 1 | . 1 . . Reused . | . . . . Traps Extracted . | . . . . Installed . | . . . . Triggered . | . . . . Machines | -11 -10 -10 -9 ---------- Run | Yrd Mat Sub Rec Machines Disabled . | . . . . Max in Single Turn . | . . . . Machines Repaired . | . . . . Machines Dismantled . | . . . . Machines Sabotaged . | . . . . Overloaded Fab Kills . | . . . . Hacking | -11 -10 -10 -9 --------- Run | Yrd Mat Sub Rec Machines Accessed 4 | . 1 . 3 Terminals 4 | . 1 . 3 Fabricators . | . . . . Repair Stations . | . . . . Recycling Units . | . . . . Scanalyzers . | . . . . Garrison Access . | . . . . Total Hacks 10 | . 2 . 8 Successful 5 | . 2 . 3 Failed 5 | . . . 5 Catastrophic 2 | . . . 2 Database Lockouts . | . . . . Manual 5 | . . . 5 Terminals 10 | . 2 . 8 Fabricators . | . . . . Repair Stations . | . . . . Recycling Units . | . . . . Scanalyzers . | . . . . Garrison Access . | . . . . Terminal Hacks 5 | . 2 . 3 Record 1 | . 1 . . Prototype ID Bank 1 | . . . 1 Level Access Points 1 | . . . 1 Branch Access Points 1 | . . . 1 Reprogram Traps 1 | . 1 . . Fabricator Hacks . | . . . . Repair Station Hacks . | . . . . Recycling Unit Hacks . | . . . . Scanalyzer . | . . . . Garrison Access Hacks . | . . . . Unauthorized Hacks . | . . . . Terminals . | . . . . Fabricators . | . . . . Repair Stations . | . . . . Recycling Units . | . . . . Scanalyzers . | . . . . Garrison Access . | . . . . Data Cores Recovered . | . . . . Used . | . . . . Hacking Detections 3 | . 1 . 2 Full Trace Events 2 | . . . 2 Feedback Events . | . . . . Feedback Blocked . | . . . . Robot Schematics Acquired . | . . . . Robots Built . | . . . . Authchips . | . . . . Time . | . . . . Total Robot Build Rating . | . . . . Part Schematics Acquired . | . . . . Parts Built . | . . . . Authchips . | . . . . Time . | . . . . Total Part Build Rating . | . . . . Parts Repaired . | . . . . Time . | . . . . Parts Recycled . | . . . . Recycled Matter . | . . . . Retrieved Matter . | . . . . Retrieved Components . | . . . . Parts Scanalyzed . | . . . . Part Schematics Acquired . | . . . . Parts Damaged . | . . . . Bothacking | -11 -10 -10 -9 ------------ Run | Yrd Mat Sub Rec Used RIF Installer . | . . . . Robots Hacked 3 | . 1 1 1 Non-combat 2 | . 1 . 1 Combat 1 | . . 1 . Robot Hacks Applied 4 | . 2 1 1 find_recycling 1 | . . . 1 map_route 1 | . 1 . . mark_security 1 | . 1 . . find_shortcuts 1 | . . 1 . Relay Couplers Released . | . . . . Fabnet Peak Effective % . | . . . . Robots Rewired . | . . . . Allies Hacked . | . . . . Hacks Repelled . | . . . . Allies | -11 -10 -10 -9 -------- Run | Yrd Mat Sub Rec Total Allies . | . . . . Largest Group . | . . . . Highest-Rated Group . | . . . . Highest-Rated Ally . | . . . . Total Orders . | . . . . Ally Attacks . | . . . . Total Damage . | . . . . Kills . | . . . . Allies Corrupted . | . . . . Allies Melted . | . . . . Intel | -11 -10 -10 -9 ------- Run | Yrd Mat Sub Rec Robot Analysis Total 4 | . 1 2 1 Derelict Logs Recovered . | . . . . Drone Launches . | . . . . Drone Recoveries . | . . . . Exploration | -11 -10 -10 -9 ------------- Run | Yrd Mat Sub Rec Turns Passed 1084 | . 418 556 110 Spaces Moved 713 | 1 62 507 143 Core 174 | 1 32 50 91 Treads 39 | . . 39 . Legs . | . . . . Wheels 301 | . . 249 52 Hover 199 | . 30 169 . Flight . | . . . . Fastest Speed 50 | 50 50 50 50 Average Speed 85 | 50 52 94 68 Slowest Speed 160 | 50 56 160 100 Overloaded Moves . | . . . . Propulsion Burnouts . | . . . . Robots Hopped . | . . . . Cave-ins Triggered . | . . . . Exploration Rate (%) 18 | 2 15 29 28 Regions Visited 3 Branch Regions 2 Pre-discovered Areas . | . . . . Known Exits Taken 1 | . 1 . . Unknown Exits Taken 2 | 1 . 1 . Scrap Searched 2 | . . 2 . Spaces Dug . | . . . . Terrain Destroyed . | . . . . Melee . | . . . . Projectile . | . . . . AOE . | . . . . Terrain Rammed . | . . . . Walls Destroyed . | . . . . Machines Disabled . | . . . . Actions | -11 -10 -10 -9 --------- Run | Yrd Mat Sub Rec Total 1156 | . 446 554 156 Wait 420 | . 385 27 8 Move 710 | . 61 506 143 Hop . | . . . . Pick Up 6 | . . 2 4 Fast Attach . | . . . . Attach . | . . . . Detach . | . . . . Swap . | . . . . Drop . | . . . . Fire 16 | . . 16 . Melee . | . . . . Ram . | . . . . Kick . | . . . . Crush 3 | . . 3 . Escape Stasis . | . . . . Rewire 1 | . . . 1 Trap . | . . . . Miscellaneous . | . . . . Route ------- -11/Scrapyard -10/Materials (discovered 2 exits: [Mat] / *Sub) -10/Subcaves (discovered 2 exits: *Mat / *Rec) -9/Recycling (discovered 1 exit: Fac) History --------- Turn | Location | Event 1 | -11/Scrapyard | Discovered new exit (range 0) 1 | -11/Scrapyard | Entered Materials 18 | -10/Materials | Discovered new exit (range 58) 401 | -10/Materials | Discovered new exit (range 6) 418 | -10/Materials | Identified exit to Subcaves 419 | -10/Materials | Entered Subcaves 479 | -10/Subcaves | Discovered new exit (range 7) 484 | -10/Subcaves | Identified exit to Materials 578 | -10/Subcaves | Shifting Twisted Machinery released Sub. Shrapnel Launcher 967 | -10/Subcaves | Discovered new exit (range 16) 968 | -10/Subcaves | Core integrity fell below 50% 974 | -10/Subcaves | Core integrity fell below 20% 975 | -10/Subcaves | Entered Recycling 984 | -9/Recycling | Lost 7 parts (1p2n2u2w) 1000 | -9/Recycling | Identified exit to Factory 1085 | -9/Recycling | Destroyed by P-60 Hacker with Shock Rifle Last Messages --------------- 00980_ Current location identified: Recycling >>Access(Branch) No branch access points found. >>Prototypes Downloading prototype IDs... Enh. Autogun Adv. EMP Blaster 00984_ Connecting with Terminal... 00993_ Attempting to rewire Y-45 Defender. 00993_ Y-45 Defender is dormant, system inaccessible. 01000_ Connecting with Terminal... >>Access(Main) Found 1 level access point to Factory: (68,7) Map updated. 01028_ P-60 Hacker springs to life. 01028_ I-25 Savior springs to life. 01030_ Took control of R-06 Scavenger. 01030_ Extracted analysis data for R-06 Scavenger. 01048_ Acquired Welding Torch. Map ----- +----------------------------------------------------+ | ??????????????????????????????? | | ??????????????????????????????? | | ??????????????????????????????? | | ????????????????????????